Workbook

Sheet Vista Principal
C2: Calculadora de Seguros PP - Scotiabank
B7: 1) Establecer los datos del préstamos
B9: Producto | C9: Persona Natural
B10: Tipo de Seguro | C10: Seguro de Vida
B11: Tarifa | C11: TARIFA TITULAR
B12: Monto inicial | C12: 128000
B13: Seguro Desempleo
B14: Monto adicional desempleo | C14: =C13*C12 -> 0
B15: Prima de Seguro de Desgravamen/Vida | C15: 0.025
B16: Monto adicional del Seguro | C16: =+C15*C12 -> 3200
B17: MAF final (MAF inicial+seguro) | C17: =C12+C14+C16 -> 131200
B18: Empleado | C18: =IF(C9="Préstamos Personales (LD Y PA) (Empleados)","SI","NO") -> NO
B19: Moneda | C19: Soles
B20: Plazo Remanente | C20: 36
B21: Fecha de Desembolso | C21: =TODAY() -> 2022-08-12
B22: Fecha de 1er Pago | C22: 2022-09-02
B23: Cuota Julio | C23: 1
B24: Cuota Diciembre | C24: 1
B25: TEA | C25: 0.2
B26: TEA TOTAL | C26: =+C25 -> 0.2
B27: Monto del Bien | C27: 0
B28: Seguro del Bien | C28: 0
B29: Portes
B30: Cuota | C30: =(C17+(C28*C27+C29)*P34)/O34 -> 4762.28989
B31: 2) Calcular TCEA presionando el botón
B32: TCEA | C32: 0.259525304
U33: =C17-U34-C14-C16 -> 5274.15
O34: =SUM(O36:O395) -> 27.54977186 | P34: =SUM(P36:P395) -> 27.54977186 | U34: =SUM(U36:U395) -> 122725.85
B35: N° Cuota | C35: Fecha de pago | D35: Día | E35: Fecha de pago | F35: Días | G35: Dias Acumulados | H35: Saldo Inicial | I35: Amortización | J35: Interés | K35: Seguro del Bien | L35: Portes | M35: Cuota Constante | N35: Saldo Final | O35: Factor Cronograma | P35: Factor Cronograma 2 | R35: Vector i,1 Cuota | S35: Vector i,2 Días Acum | T35: Vector i,3 Factor | U35: Vector i,4 Calculo VA
B36: 1 | C36: =C22 -> 2022-09-02 | D36: =IF(B36<=$C$20,WEEKDAY(C36,2),"") -> 5 | E36: =IF(D36=7,C36+1,C36) -> 2022-09-02 | F36: =E36-C21 -> 21 | G36: =F36 -> 21 | H36: =C17 -> 131200 | I36: =IF(B36>C$20,"",M36-L36-K36-J36) -> 3359.475703 | J36: =IF(B36>C$20,"",((1+C$25)^(F36/360)-1)*H36) -> 1402.814187 | K36: =IF(B36>C$20,"",C$27*C$28) -> 0 | L36: =IF(B36>C$20,"",C$29) -> 0 | M36: =IF(B36>C$20,"",IF(B36=C$20,H36+J36+K36+L36,IF(AND(C$23=2,MONTH(E36)=7),2*C$30,IF(AND(C$24=2,MONTH(E36)=12),2*C$30,C$30)))) -> 4762.28989 | N36: =IF(B36>C$20,"",H36-I36) -> 127840.5243 | O36: =IFERROR(IF(AND(MONTH(E36)=7,C$23=2),2/(1+C$26)^(G36/360),IF(AND(MONTH(E36)=12,C$24=2),2/(1+C$26)^(G36/360),1/(1+C$26)^(G36/360))),"") -> 0.989420932 | P36: =IFERROR(1/(1+C$26)^(G36/360),"") -> 0.989420932 | R36: =IFERROR(I36+J36+K36+L36,"") -> 4762.28989 | S36: =G36 -> 21 | T36: =IFERROR((1+C$32)^(S36/360),"") -> 1.013550524 | U36: =IFERROR(ROUND(R36/T36,2),"") -> 4698.62
B37: 2 | C37: =IF(B37>$C$20,"",EDATE(C36,1)) -> 2022-10-02 | D37: 7 | E37: =IF(D37=7,C37+1,C37) -> 2022-10-03 | F37: =IF(B37>C$20,"",E37-E36) -> 31 | G37: =IFERROR(F37+G36,"") -> 52 | H37: =IF(B37>C$20,"",N36) -> 127840.5243 | I37: =IF(B37>C$20,"",M37-L37-K37-J37) -> 2739.366623 | J37: 2022.923267 | K37: 0 | L37: 0 | M37: =IF(B37>C$20,"",IF(B37=C$20,H37+J37+K37+L37,IF(AND(C$23=2,MONTH(E37)=7),2*C$30,IF(AND(C$24=2,MONTH(E37)=12),2*C$30,C$30)))) -> 4762.28989 | N37: 125101.1577 | O37: 0.9740084148 | P37: 0.9740084148 | R37: =IFERROR(I37+J37+K37+L37,"") -> 4762.28989 | S37: 52 | T37: 1.033889988 | U37: 4606.19
B38: 3 | C38: 2022-11-02 | D38: 3 | E38: 2022-11-02 | F38: 30 | G38: 82 | H38: 125101.1577 | I38: 2847.057407 | J38: 1915.232483 | K38: 0 | L38: 0 | M38: 4762.28989 | N38: 122254.1003 | O38: 0.9593217074 | P38: 0.9593217074 | R38: 4762.28989 | S38: 82 | T38: 1.053961882 | U38: 4518.47
B39: 4 | C39: 2022-12-02 | D39: 5 | E39: 2022-12-02 | F39: 30 | G39: 112 | H39: 122254.1003 | I39: 2890.644349 | J39: 1871.645542 | K39: 0 | L39: 0 | M39: 4762.28989 | N39: 119363.4559 | O39: 0.9448564554 | P39: 0.9448564554 | R39: 4762.28989 | S39: 112 | T39: 1.074423451 | U39: 4432.41
B40: 5 | C40: 2023-01-02 | D40: 1 | E40: 2023-01-02 | F40: 31 | G40: 143 | H40: 119363.4559 | I40: 2873.506083 | J40: 1888.783807 | K40: 0 | L40: 0 | M40: 4762.28989 | N40: 116489.9498 | O40: 0.9301381328 | P40: 0.9301381328 | R40: 4762.28989 | S40: 143 | T40: 1.095984485 | U40: 4345.22
B41: 6 | C41: 2023-02-02 | D41: 4 | E41: 2023-02-02 | F41: 31 | G41: 174 | H41: 116489.9498 | I41: 2918.975877 | J41: 1843.314013 | K41: 0 | L41: 0 | M41: 4762.28989 | N41: 113570.974 | O41: 0.9156490822 | P41: 0.9156490822 | R41: 4762.28989 | S41: 174 | T41: 1.117978196 | U41: 4259.73
B42: 7 | C42: 2023-03-02 | D42: 4 | E42: 2023-03-02 | F42: 28 | G42: 202 | H42: 113570.974 | I42: 3140.316179 | J42: 1621.973711 | K42: 0 | L42: 0 | M42: 4762.28989 | N42: 110430.6578 | O42: 0.9027562899 | P42: 0.9027562899 | R42: 4762.28989 | S42: 202 | T42: 1.138222597 | U42: 4183.97
B43: 8 | C43: 2023-04-02 | D43: 7 | E43: 2023-04-03 | F43: 32 | G43: 234 | H43: 110430.6578 | I43: 2958.030076 | J43: 1804.259814 | K43: 0 | L43: 0 | M43: 4762.28989 | N43: 107472.6277 | O43: 0.8882438108 | P43: 0.8882438108 | R43: 4762.28989 | S43: 234 | T43: 1.161808322 | U43: 4099.03
B44: 9 | C44: 2023-05-02 | D44: 2 | E44: 2023-05-02 | F44: 29 | G44: 263 | H44: 107472.6277 | I44: 3172.18954 | J44: 1590.10035 | K44: 0 | L44: 0 | M44: 4762.28989 | N44: 104300.4382 | O44: 0.8752934948 | P44: 0.8752934948 | R44: 4762.28989 | S44: 263 | T44: 1.183604766 | U44: 4023.55
B45: 10 | C45: 2023-06-02 | D45: 5 | E45: 2023-06-02 | F45: 31 | G45: 294 | H45: 104300.4382 | I45: 3111.860308 | J45: 1650.429582 | K45: 0 | L45: 0 | M45: 4762.28989 | N45: 101188.5779 | O45: 0.8616587761 | P45: 0.8616587761 | R45: 4762.28989 | S45: 294 | T45: 1.2073568 | U45: 3944.39
B46: 11 | C46: 2023-07-02 | D46: 7 | E46: 2023-07-03 | F46: 31 | G46: 325 | H46: 101188.5779 | I46: 3161.101772 | J46: 1601.188118 | K46: 0 | L46: 0 | M46: 4762.28989 | N46: 98027.47608 | O46: 0.8482364497 | P46: 0.8482364497 | R46: 4762.28989 | S46: 325 | T46: 1.231585479 | U46: 3866.8
B47: 12 | C47: 2023-08-02 | D47: 3 | E47: 2023-08-02 | F47: 30 | G47: 355 | H47: 98027.47608 | I47: 3261.541137 | J47: 1500.748753 | K47: 0 | L47: 0 | M47: 4762.28989 | N47: 94765.93495 | O47: 0.8354462106 | P47: 0.8354462106 | R47: 4762.28989 | S47: 355 | T47: 1.255495425 | U47: 3793.16
B48: 13 | C48: 2023-09-02 | D48: 6 | E48: 2023-09-02 | F48: 31 | G48: 386 | H48: 94765.93495 | I48: 3262.732408 | J48: 1499.557482 | K48: 0 | L48: 0 | M48: 4762.28989 | N48: 91503.20254 | O48: 0.8224322054 | P48: 0.8224322054 | R48: 4762.28989 | S48: 386 | T48: 1.280690128 | U48: 3718.53
B49: 14 | C49: 2023-10-02 | D49: 1 | E49: 2023-10-02 | F49: 30 | G49: 416 | H49: 91503.20254 | I49: 3361.42431 | J49: 1400.86558 | K49: 0 | L49: 0 | M49: 4762.28989 | N49: 88141.77823 | O49: 0.8100310588 | P49: 0.8100310588 | R49: 4762.28989 | S49: 416 | T49: 1.305553389 | U49: 3647.72
B50: 15 | C50: 2023-11-02 | D50: 4 | E50: 2023-11-02 | F50: 31 | G50: 447 | H50: 88141.77823 | I50: 3367.551759 | J50: 1394.738131 | K50: 0 | L50: 0 | M50: 4762.28989 | N50: 84774.22647 | O50: 0.7974129533 | P50: 0.7974129533 | R50: 4762.28989 | S50: 447 | T50: 1.331752632 | U50: 3575.96
B51: 16 | C51: 2023-12-02 | D51: 6 | E51: 2023-12-02 | F51: 30 | G51: 477 | H51: 84774.22647 | I51: 3464.441371 | J51: 1297.848519 | K51: 0 | L51: 0 | M51: 4762.28989 | N51: 81309.7851 | O51: 0.7853890627 | P51: 0.7853890627 | R51: 4762.28989 | S51: 477 | T51: 1.357607218 | U51: 3507.86
B52: 17 | C52: 2024-01-02 | D52: 2 | E52: 2024-01-02 | F52: 31 | G52: 508 | H52: 81309.7851 | I52: 3475.659872 | J52: 1286.630018 | K52: 0 | L52: 0 | M52: 4762.28989 | N52: 77834.12523 | O52: 0.7731548132 | P52: 0.7731548132 | R52: 4762.28989 | S52: 508 | T52: 1.384851053 | U52: 3438.85
B53: 18 | C53: 2024-02-02 | D53: 5 | E53: 2024-02-02 | F53: 31 | G53: 539 | H53: 77834.12523 | I53: 3530.658029 | J53: 1231.631861 | K53: 0 | L53: 0 | M53: 4762.28989 | N53: 74303.4672 | O53: 0.7611111405 | P53: 0.7611111405 | R53: 4762.28989 | S53: 539 | T53: 1.412641605 | U53: 3371.19
B54: 19 | C54: 2024-03-02 | D54: 6 | E54: 2024-03-02 | F54: 29 | G54: 568 | H54: 74303.4672 | I54: 3662.940486 | J54: 1099.349404 | K54: 0 | L54: 0 | M54: 4762.28989 | N54: 70640.52671 | O54: 0.7500143789 | P54: 0.7500143789 | R54: 4762.28989 | S54: 568 | T54: 1.43914388 | U54: 3309.11
B55: 20 | C55: 2024-04-02 | D55: 2 | E55: 2024-04-02 | F55: 31 | G55: 599 | H55: 70640.52671 | I55: 3644.488114 | J55: 1117.801776 | K55: 0 | L55: 0 | M55: 4762.28989 | N55: 66996.0386 | O55: 0.738331172 | P55: 0.738331172 | R55: 4762.28989 | S55: 599 | T55: 1.468023955 | U55: 3244.01
B56: 21 | C56: 2024-05-02 | D56: 4 | E56: 2024-05-02 | F56: 30 | G56: 629 | H56: 66996.0386 | I56: 3736.616014 | J56: 1025.673877 | K56: 0 | L56: 0 | M56: 4762.28989 | N56: 63259.42258 | O56: 0.7271981533 | P56: 0.7271981533 | R56: 4762.28989 | S56: 629 | T56: 1.496524107 | U56: 3182.23
B57: 22 | C57: 2024-06-02 | D57: 7 | E57: 2024-06-03 | F57: 32 | G57: 661 | H57: 63259.42258 | I57: 3728.732395 | J57: 1033.557495 | K57: 0 | L57: 0 | M57: 4762.28989 | N57: 59530.69019 | O57: 0.7155079019 | P57: 0.7155079019 | R57: 4762.28989 | S57: 661 | T57: 1.527534391 | U57: 3117.63
B58: 23 | C58: 2024-07-02 | D58: 2 | E58: 2024-07-02 | F58: 29 | G58: 690 | H58: 59530.69019 | I58: 3881.509608 | J58: 880.7802816 | K58: 0 | L58: 0 | M58: 4762.28989 | N58: 55649.18058 | O58: 0.7050760212 | P58: 0.7050760212 | R58: 4762.28989 | S58: 690 | T58: 1.556192146 | U58: 3060.22
B59: 24 | C59: 2024-08-02 | D59: 5 | E59: 2024-08-02 | F59: 31 | G59: 721 | H59: 55649.18058 | I59: 3881.708222 | J59: 880.5816685 | K59: 0 | L59: 0 | M59: 4762.28989 | N59: 51767.47236 | O59: 0.694092833 | P59: 0.694092833 | R59: 4762.28989 | S59: 721 | T59: 1.587421092 | U59: 3000.02
B60: 25 | C60: 2024-09-02 | D60: 1 | E60: 2024-09-02 | F60: 31 | G60: 752 | H60: 51767.47236 | I60: 3943.131608 | J60: 819.1582824 | K60: 0 | L60: 0 | M60: 4762.28989 | N60: 47824.34075 | O60: 0.6832807333 | P60: 0.6832807333 | R60: 4762.28989 | S60: 752 | T60: 1.619276725 | U60: 2941
B61: 26 | C61: 2024-10-02 | D61: 3 | E61: 2024-10-02 | F61: 30 | G61: 782 | H61: 47824.34075 | I61: 4030.124556 | J61: 732.1653339 | K61: 0 | L61: 0 | M61: 4762.28989 | N61: 43794.2162 | O61: 0.6729777995 | P61: 0.6729777995 | R61: 4762.28989 | S61: 782 | T61: 1.650713292 | U61: 2884.99
B62: 27 | C62: 2024-11-02 | D62: 6 | E62: 2024-11-02 | F62: 31 | G62: 813 | H62: 43794.2162 | I62: 4069.298842 | J62: 692.9910479 | K62: 0 | L62: 0 | M62: 4762.28989 | N62: 39724.91735 | O62: 0.6624946152 | P62: 0.6624946152 | R62: 4762.28989 | S62: 813 | T62: 1.683839044 | U62: 2828.23
B63: 28 | C63: 2024-12-02 | D63: 1 | E63: 2024-12-02 | F63: 30 | G63: 843 | H63: 39724.91735 | I63: 4154.12244 | J63: 608.1674503 | K63: 0 | L63: 0 | M63: 4762.28989 | N63: 35570.79491 | O63: 0.6525051075 | P63: 0.6525051075 | R63: 4762.28989 | S63: 843 | T63: 1.716529021 | U63: 2774.37
B64: 29 | C64: 2025-01-02 | D64: 4 | E64: 2025-01-02 | F64: 31 | G64: 874 | H64: 35570.79491 | I64: 4199.42464 | J64: 562.8652499 | K64: 0 | L64: 0 | M64: 4762.28989 | N64: 31371.37027 | O64: 0.6423408328 | P64: 0.6423408328 | R64: 4762.28989 | S64: 874 | T64: 1.750975533 | U64: 2719.79
B65: 30 | C65: 2025-02-02 | D65: 7 | E65: 2025-02-03 | F65: 32 | G65: 906 | H65: 31371.37027 | I65: 4249.73202 | J65: 512.5578697 | K65: 0 | L65: 0 | M65: 4762.28989 | N65: 27121.63825 | O65: 0.6320147259 | P65: 0.6320147259 | R65: 4762.28989 | S65: 906 | T65: 1.787258443 | U65: 2664.58
B66: 31 | C66: 2025-03-02 | D66: 7 | E66: 2025-03-03 | F66: 28 | G66: 934 | H66: 27121.63825 | I66: 4374.949862 | J66: 387.340028 | K66: 0 | L66: 0 | M66: 4762.28989 | N66: 22746.68839 | O66: 0.6231156458 | P66: 0.6231156458 | R66: 4762.28989 | S66: 934 | T66: 1.819622201 | U66: 2617.19
B67: 32 | C67: 2025-04-02 | D67: 3 | E67: 2025-04-02 | F67: 30 | G67: 964 | H67: 22746.68839 | I67: 4414.050135 | J67: 348.2397549 | K67: 0 | L67: 0 | M67: 4762.28989 | N67: 18332.63826 | O67: 0.6137199188 | P67: 0.6137199188 | R67: 4762.28989 | S67: 964 | T67: 1.854948266 | U67: 2567.34
B68: 33 | C68: 2025-05-02 | D68: 5 | E68: 2025-05-02 | F68: 30 | G68: 994 | H68: 18332.63826 | I68: 4481.626906 | J68: 280.6629846 | K68: 0 | L68: 0 | M68: 4762.28989 | N68: 13851.01135 | O68: 0.6044658665 | P68: 0.6044658665 | R68: 4762.28989 | S68: 994 | T68: 1.89096015 | U68: 2518.45
B69: 34 | C69: 2025-06-02 | D69: 1 | E69: 2025-06-02 | F69: 31 | G69: 1025 | H69: 13851.01135 | I69: 4543.114216 | J69: 219.1756744 | K69: 0 | L69: 0 | M69: 4762.28989 | N69: 9307.897134 | O69: 0.5950499139 | P69: 0.5950499139 | R69: 4762.28989 | S69: 1025 | T69: 1.928907065 | U69: 2468.91
B70: 35 | C70: 2025-07-02 | D70: 3 | E70: 2025-07-02 | F70: 30 | G70: 1055 | H70: 9307.897134 | I70: 4619.790913 | J70: 142.4989766 | K70: 0 | L70: 0 | M70: 4762.28989 | N70: 4688.106221 | O70: 0.5860773795 | P70: 0.5860773795 | R70: 4762.28989 | S70: 1055 | T70: 1.966354781 | U70: 2421.89
B71: 36 | C71: 2025-08-02 | D71: 6 | E71: 2025-08-02 | F71: 31 | G71: 1086 | H71: 4688.106221 | I71: 4688.106221 | J71: 74.1836691 | K71: 0 | L71: 0 | M71: 4762.28989 | N71: 0 | O71: 0.5769478701 | P71: 0.5769478701 | R71: 4762.28989 | S71: 1086 | T71: 2.005814681 | U71: 2374.24
B72: 37
B73: 38
B74: 39
B75: 40
B76: 41
B77: 42
B78: 43
B79: 44
B80: 45
B81: 46
B82: 47
B83: 48
B84: 49
B85: 50
B86: 51
B87: 52
B88: 53
B89: 54
B90: 55
B91: 56
B92: 57
B93: 58
B94: 59
B95: 60
B96: 61
B97: 62
B98: 63
B99: 64
B100: 65 | D100: =IF(B100<=$C$20,WEEKDAY(C100,2),"") ->  | J100: =IF(B100>C$20,"",((1+C$25)^(F100/360)-1)*H100) ->  | K100: =IF(B100>C$20,"",C$27*C$28) ->  | L100: =IF(B100>C$20,"",C$29) ->  | N100: =IF(B100>C$20,"",H100-I100) ->  | O100: =IFERROR(IF(AND(MONTH(E100)=7,C$23=2),2/(1+C$26)^(G100/360),IF(AND(MONTH(E100)=12,C$24=2),2/(1+C$26)^(G100/360),1/(1+C$26)^(G100/360))),"") ->  | P100: =IFERROR(1/(1+C$26)^(G100/360),"") ->  | S100: =G100 ->  | T100: =IFERROR((1+C$32)^(S100/360),"") ->  | U100: =IFERROR(ROUND(R100/T100,2),"") -> 
B101: 66 | C101: =IF(B101>$C$20,"",EDATE(C100,1)) ->  | E101: =IF(D101=7,C101+1,C101) ->  | F101: =IF(B101>C$20,"",E101-E100) ->  | G101: =IFERROR(F101+G100,"") ->  | H101: =IF(B101>C$20,"",N100) ->  | I101: =IF(B101>C$20,"",M101-L101-K101-J101) ->  | M101: =IF(B101>C$20,"",IF(B101=C$20,H101+J101+K101+L101,IF(AND(C$23=2,MONTH(E101)=7),2*C$30,IF(AND(C$24=2,MONTH(E101)=12),2*C$30,C$30)))) ->  | R101: =IFERROR(I101+J101+K101+L101,"") -> 
B102: 67
B103: 68
B104: 69
B105: 70
B106: 71
B107: 72
B108: 73
B109: 74
B110: 75
B111: 76
B112: 77
B113: 78
B114: 79
B115: 80
B116: 81
B117: 82
B118: 83
B119: 84
B120: 85
B121: 86
B122: 87
B123: 88
B124: 89
B125: 90
B126: 91
B127: 92
B128: 93
B129: 94
B130: 95
B131: 96
B132: 97
B133: 98
B134: 99
B135: 100
B136: 101
B137: 102
B138: 103
B139: 104
B140: 105
B141: 106
B142: 107
B143: 108
B144: 109
B145: 110
B146: 111
B147: 112
B148: 113
B149: 114
B150: 115
B151: 116
B152: 117
B153: 118
B154: 119
B155: 120
B156: 121
B157: 122
B158: 123
B159: 124
B160: 125
B161: 126
B162: 127
B163: 128
B164: 129 | D164: =IF(B164<=$C$20,WEEKDAY(C164,2),"") ->  | J164: =IF(B164>C$20,"",((1+C$25)^(F164/360)-1)*H164) ->  | K164: =IF(B164>C$20,"",C$27*C$28) ->  | L164: =IF(B164>C$20,"",C$29) ->  | N164: =IF(B164>C$20,"",H164-I164) ->  | O164: =IFERROR(IF(AND(MONTH(E164)=7,C$23=2),2/(1+C$26)^(G164/360),IF(AND(MONTH(E164)=12,C$24=2),2/(1+C$26)^(G164/360),1/(1+C$26)^(G164/360))),"") ->  | P164: =IFERROR(1/(1+C$26)^(G164/360),"") ->  | S164: =G164 ->  | T164: =IFERROR((1+C$32)^(S164/360),"") ->  | U164: =IFERROR(ROUND(R164/T164,2),"") -> 
B165: 130 | C165: =IF(B165>$C$20,"",EDATE(C164,1)) ->  | E165: =IF(D165=7,C165+1,C165) ->  | F165: =IF(B165>C$20,"",E165-E164) ->  | G165: =IFERROR(F165+G164,"") ->  | H165: =IF(B165>C$20,"",N164) ->  | I165: =IF(B165>C$20,"",M165-L165-K165-J165) ->  | M165: =IF(B165>C$20,"",IF(B165=C$20,H165+J165+K165+L165,IF(AND(C$23=2,MONTH(E165)=7),2*C$30,IF(AND(C$24=2,MONTH(E165)=12),2*C$30,C$30)))) ->  | R165: =IFERROR(I165+J165+K165+L165,"") -> 
B166: 131
B167: 132
B168: 133
B169: 134
B170: 135
B171: 136
B172: 137
B173: 138
B174: 139
B175: 140
B176: 141
B177: 142
B178: 143
B179: 144
B180: 145
B181: 146
B182: 147
B183: 148
B184: 149
B185: 150
B186: 151
B187: 152
B188: 153
B189: 154
B190: 155
B191: 156
B192: 157
B193: 158
B194: 159
B195: 160
B196: 161
B197: 162
B198: 163
B199: 164
B200: 165
B201: 166
B202: 167
B203: 168
B204: 169
B205: 170
B206: 171
... 189 more rows

Sheet Proceso Prima de Seguro (hidden)
D2: Proceso de Cálculo de la Prima de Seguros
B7: 1) Datos esenciales del préstamo | G7: 3) Calculo del valor presente del Seguro
B9: Producto | D9: ='Vista Principal'!C9 -> Persona Natural | G9: Suma de Prima Mensual | H9: =SUM(L36:L395) -> 2512.576658
B10: Tipo de Seguro | D10: ='Vista Principal'!C10 -> Seguro de Vida | G10: VPN - Valor Presente | H10: =NPV(D16,L36:L395) -> 2512.576658
B11: Tarifa | D11: ='Vista Principal'!C11 -> TARIFA TITULAR
B12: Monto inicial | D12: ='Vista Principal'!C12 -> 128000 | G12: 4) Calculo del Monto Adicional del Seguro y MAF
B13: =D10 -> Seguro de Vida | C13: =+CONCATENATE(D11,D9,D10) -> TARIFA TITULARPersona NaturalSeguro de Vida | D13: =VLOOKUP(C13,capucci2020,2,0) -> 0.000975
B14: Monto adicional Seguro de Desgravamen/ Vida | G14: Monto inicial | H14: =D12 -> 128000
B15: MAF Inicial | D15: =D12+D14 -> 128000 | G15: Monto adicional de Desgravamen / Vida | H15: =H10 -> 2512.576658
B16: Costo Capital | D16: =INDEX(_xlfn._xlws.FILTER(Tabla2[],Tabla2[TARIFA]=D11),0,2) -> 0 | G16: Prima de Seguro de Desgravamen / Vida | H16: =H15/H14 -> 0.01962950514
B17: Moneda | D17: ='Vista Principal'!C19 -> Soles | G17: MAF Inicial | H17: =H14+H15 -> 130512.5767
B18: Plazo Remanente Meses | D18: ='Vista Principal'!C20 -> 36
B19: Fecha de Desembolso | D19: ='Vista Principal'!C21 -> 2022-08-12
B20: Fecha de 1er Pago | D20: ='Vista Principal'!C22 -> 2022-09-02
B21: Cuota Julio | D21: ='Vista Principal'!C23 -> 1
B22: Cuota Diciembre | D22: ='Vista Principal'!C24 -> 1
B23: TEA | D23: ='Vista Principal'!C25 -> 0.2
B24: TEA TOTAL | D24: =(1+(((1+D23)^(30/360)-1)+D13))^12-1 -> 0.2139015665
B25: Monto del Bien | D25: 0
B26: Seguro del Bien | D26: 0
B27: Portes | D27: 0
B28: Cuota | D28: =(D15+(D26*D25+D27)*R34)/Q34 -> 4721.290545
B30: TCEA | D30: 0.2373067527
W31: =D15-W34-D14 -> 3333.01
B33: 2) Creación de Cronograma de prima mensual
Q34: =SUM(Q36:Q395) -> 27.1112313 | R34: =SUM(R36:R395) -> 27.1112313 | W34: =SUM(W36:W395) -> 124666.99
B35: N° Cuota | D35: Fecha de pago | E35: Día | F35: Fecha de pago | G35: Días | H35: Dias Acumulados | I35: Saldo Inicial | J35: Amortización | K35: Interés | L35: Seguro Desgravamen | M35: Seguro del Bien | N35: Portes | O35: Cuota Constante | P35: Saldo Final | Q35: Factor Cronograma | R35: Factor Cronograma 2 | T35: Vector i,1 Cuota | U35: Vector i,2 Días Acum | V35: Vector i,3 Factor | W35: Vector i,4 Calculo VA | X35: VPN - Valor Presente | Y35: VPN - Valor Presente
B36: 1 | D36: =D20 -> 2022-09-02 | E36: =IF(B36<=$D$18,WEEKDAY(D36,2),"") -> 5 | F36: =IF(E36=7,D36+1,D36) -> 2022-09-02 | G36: =F36-D19 -> 21 | H36: =G36 -> 21 | I36: =D15 -> 128000 | J36: =IF(B36>D$18,"",O36-N36-M36-L36-K36) -> 3265.344109 | K36: =IF(B36>D$18,"",((1+D$23)^(G36/360)-1)*I36) -> 1368.599207 | L36: =IF(B36>D$18,"",((1+D$13)^(G36/30)-1)*I36) -> 87.34722899 | M36: =IF(B36>D$18,"",D$25*D$26) -> 0 | N36: =IF(B36>D$18,"",D$27) -> 0 | O36: =IF(B36>D$18,"",IF(B36=D$18,I36+K36+L36+M36+N36,IF(AND(D$21=2,MONTH(F36)=7),2*D$28,IF(AND(D$22=2,MONTH(F36)=12),2*D$28,D$28)))) -> 4721.290545 | P36: =IF(B36>D$18,"",I36-J36) -> 124734.6559 | Q36: =IFERROR(IF(AND(MONTH(F36)=7,D$21=2),2/(1+D$24)^(H36/360),IF(AND(MONTH(F36)=12,D$22=2),2/(1+D$24)^(H36/360),1/(1+D$24)^(H36/360))),"") -> 0.9887563769 | R36: =IFERROR(1/(1+D$24)^(H36/360),"") -> 0.9887563769 | T36: =IFERROR(J36+K36+L36+M36+N36,"") -> 4721.290545 | U36: =H36 -> 21 | V36: =IFERROR((1+D$30)^(U36/360),"") -> 1.012498793 | W36: =IFERROR(ROUND(T36/V36,2),"") -> 4663.01 | X36: =L36/(1+$I$9) -> 87.34722899 | Y36: =L36/(1+$Q$28) -> 87.34722899
B37: 2 | D37: =IF(B37>$D$18,"",EDATE(D36,1)) -> 2022-10-02 | E37: 7 | F37: =IF(E37=7,D37+1,D37) -> 2022-10-03 | G37: =IF(B37>D$18,"",F37-F36) -> 31 | H37: =IFERROR(G37+H36,"") -> 52 | I37: =IF(B37>D$18,"",P36) -> 124734.6559 | J37: 2621.84172 | K37: 1973.776617 | L37: =IF(B37>D$18,"",((1+D$13)^(G37/30)-1)*I37) -> 125.6722073 | M37: 0 | N37: 0 | O37: 4721.290545 | P37: 122112.8142 | Q37: 0.9723892863 | R37: 0.9723892863 | T37: 4721.290545 | U37: 52 | V37: 1.031235474 | W37: 4578.29 | X37: =IF(O37="",0,L37/((1+$I$9)^B37)) -> 125.6722073 | Y37: =IF(O37="",0,L37/((1+$Q$28)^B37)) -> 125.6722073
B38: 3 | D38: 2022-11-02 | E38: 3 | F38: 2022-11-02 | G38: 30 | H38: 82 | I38: 122112.8142 | J38: 2732.748025 | K38: 1869.482526 | L38: 119.0599938 | M38: 0 | N38: 0 | O38: 4721.290545 | P38: 119380.0661 | Q38: 0.9568081718 | R38: 0.9568081718 | T38: 4721.290545 | U38: 82 | V38: 1.049697814 | W38: 4497.76 | X38: 119.0599938 | Y38: 119.0599938
B39: 4 | D39: 2022-12-02 | E39: 5 | F39: 2022-12-02 | G39: 30 | H39: 112 | I39: 119380.0661 | J39: 2777.24938 | K39: 1827.645601 | L39: 116.3955645 | M39: 0 | N39: 0 | O39: 4721.290545 | P39: 116602.8168 | Q39: 0.9414767219 | R39: 0.9414767219 | T39: 4721.290545 | U39: 112 | V39: 1.068490688 | W39: 4418.65 | X39: 116.3955645 | Y39: 116.3955645
B40: 5 | D40: 2023-01-02 | E40: 1 | F40: 2023-01-02 | G40: 31 | H40: 143 | I40: 116602.8168 | J40: 2758.711301 | K40: 1845.099997 | L40: 117.4792463 | M40: 0 | N40: 0 | O40: 4721.290545 | P40: 113844.1055 | Q40: 0.9258922613 | R40: 0.9258922613 | T40: 4721.290545 | U40: 143 | V40: 1.088263521 | W40: 4338.37 | X40: 117.4792463 | Y40: 117.4792463
B41: 6 | D41: 2023-02-02 | E41: 4 | F41: 2023-02-02 | G41: 31 | H41: 174 | I41: 113844.1055 | J41: 2805.144052 | K41: 1801.446693 | L41: 114.6997995 | M41: 0 | N41: 0 | O41: 4721.290545 | P41: 111038.9614 | Q41: 0.9105657735 | R41: 0.9105657735 | T41: 4721.290545 | U41: 174 | V41: 1.108402258 | W41: 4259.55 | X41: 114.6997995 | Y41: 114.6997995
B42: 7 | D42: 2023-03-02 | E42: 4 | F42: 2023-03-02 | G42: 28 | H42: 202 | I42: 111038.9614 | J42: 3034.435819 | K42: 1585.812554 | L42: 101.042172 | M42: 0 | N42: 0 | O42: 4721.290545 | P42: 108004.5256 | Q42: 0.8969406739 | R42: 0.8969406739 | T42: 4721.290545 | U42: 202 | V42: 1.126912217 | W42: 4189.58 | X42: 101.042172 | Y42: 101.042172
B43: 8 | D43: 2023-04-02 | E43: 7 | F43: 2023-04-03 | G43: 32 | H43: 234 | I43: 108004.5256 | J43: 2844.341483 | K43: 1764.620706 | L43: 112.3283561 | M43: 0 | N43: 0 | O43: 4721.290545 | P43: 105160.1841 | Q43: 0.8816185982 | R43: 0.8816185982 | T43: 4721.290545 | U43: 234 | V43: 1.148445258 | W43: 4111.03 | X43: 112.3283561 | Y43: 112.3283561
B44: 9 | D44: 2023-05-02 | E44: 2 | F44: 2023-05-02 | G44: 29 | H44: 263 | I44: 105160.1841 | J44: 3066.291856 | K44: 1555.886826 | L44: 99.11186347 | M44: 0 | N44: 0 | O44: 4721.290545 | P44: 102093.8923 | Q44: 0.8679591722 | R44: 0.8679591722 | T44: 4721.290545 | U44: 263 | V44: 1.168314767 | W44: 4041.11 | X44: 99.11186347 | Y44: 99.11186347
B45: 10 | D45: 2023-06-02 | E45: 5 | F45: 2023-06-02 | G45: 31 | H45: 294 | I45: 102093.8923 | J45: 3002.915643 | K45: 1615.513635 | L45: 102.8612674 | M45: 0 | N45: 0 | O45: 4721.290545 | P45: 99090.97661 | Q45: 0.8535916629 | R45: 0.8535916629 | T45: 4721.290545 | U45: 294 | V45: 1.189934883 | W45: 3967.69 | X45: 102.8612674 | Y45: 102.8612674
B46: 11 | D46: 2023-07-02 | E46: 7 | F46: 2023-07-03 | G46: 31 | H46: 325 | I46: 99090.97661 | J46: 3053.458675 | K46: 1567.996089 | L46: 99.83578073 | M46: 0 | N46: 0 | O46: 4721.290545 | P46: 96037.51794 | Q46: 0.839461982 | R46: 0.839461982 | T46: 4721.290545 | U46: 325 | V46: 1.211955088 | W46: 3895.6 | X46: 99.83578073 | Y46: 99.83578073
B47: 12 | D47: 2023-08-02 | E47: 3 | F47: 2023-08-02 | G47: 30 | H47: 355 | I47: 96037.51794 | J47: 3157.370417 | K47: 1470.283548 | L47: 93.63657999 | M47: 0 | N47: 0 | O47: 4721.290545 | P47: 92880.14752 | Q47: 0.8260108329 | R47: 0.8260108329 | T47: 4721.290545 | U47: 355 | V47: 1.233652875 | W47: 3827.08 | X47: 93.63657999 | Y47: 93.63657999
B48: 13 | D48: 2023-09-02 | E48: 6 | F48: 2023-09-02 | G48: 31 | H48: 386 | I48: =IF(B48>D$18,"",P47) -> 92880.14752 | J48: =IF(B48>D$18,"",O48-N48-M48-L48-K48) -> 3157.995123 | K48: =IF(B48>D$18,"",((1+D$23)^(G48/360)-1)*I48) -> 1469.717153 | L48: 93.57826877 | M48: 0 | N48: 0 | O48: 4721.290545 | P48: =IF(B48>D$18,"",I48-J48) -> 89722.1524 | Q48: 0.8123377032 | R48: 0.8123377032 | T48: =IFERROR(J48+K48+L48+M48+N48,"") -> 4721.290545 | U48: 386 | V48: 1.256482098 | W48: 3757.55 | X48: 93.57826877 | Y48: =IF(O48="",0,L48/((1+$Q$28)^B48)) -> 93.57826877
B49: 14 | D49: 2023-10-02 | E49: 1 | F49: 2023-10-02 | G49: 30 | H49: 416 | I49: 89722.1524 | J49: 3260.212801 | K49: 1373.598645 | L49: 87.47909859 | M49: 0 | N49: 0 | O49: 4721.290545 | P49: 86461.9396 | Q49: 0.799321181 | R49: 0.799321181 | T49: 4721.290545 | U49: 416 | V49: 1.278977057 | W49: 3691.46 | X49: 87.47909859 | Y49: 87.47909859
B50: 15 | D50: 2023-11-02 | E50: 4 | F50: 2023-11-02 | G50: 31 | H50: 447 | I50: 86461.9396 | J50: 3266.02203 | K50: 1368.156696 | L50: 87.11181924 | M50: 0 | N50: 0 | O50: 4721.290545 | P50: 83195.91757 | Q50: 0.7860898507 | R50: 0.7860898507 | T50: 4721.290545 | U50: 447 | V50: 1.302645022 | W50: 3624.39 | X50: 87.11181924 | Y50: 87.11181924
B51: 16 | D51: 2023-12-02 | E51: 6 | F51: 2023-12-02 | G51: 30 | H51: 477 | I51: 83195.91757 | J51: 3366.48908 | K51: 1273.685446 | L51: 81.11601963 | M51: 0 | N51: 0 | O51: 4721.290545 | P51: 79829.42849 | Q51: 0.7734939119 | R51: 0.7734939119 | T51: 4721.290545 | U51: 477 | V51: 1.325966441 | W51: 3560.64 | X51: 81.11601963 | Y51: 81.11601963
B52: 17 | D52: 2024-01-02 | E52: 2 | F52: 2024-01-02 | G52: 31 | H52: 508 | I52: 79829.42849 | J52: 3377.655942 | K52: 1263.205147 | L52: 80.42945575 | M52: 0 | N52: 0 | O52: 4721.290545 | P52: 76451.77254 | Q52: 0.7606901058 | R52: 0.7606901058 | T52: 4721.290545 | U52: 508 | V52: 1.350503963 | W52: 3495.95 | X52: 80.42945575 | Y52: 80.42945575
B53: 18 | D53: 2024-02-02 | E53: 5 | F53: 2024-02-02 | G53: 31 | H53: 539 | I53: 76451.77254 | J53: 3434.506348 | K53: 1209.757785 | L53: 77.0264121 | M53: 0 | N53: 0 | O53: 4721.290545 | P53: 73017.2662 | Q53: 0.7480982437 | R53: 0.7480982437 | T53: 4721.290545 | U53: 539 | V53: 1.375495561 | W53: 3432.43 | X53: 77.0264121 | Y53: 77.0264121
B54: 19 | D54: 2024-03-02 | E54: 6 | F54: 2024-03-02 | G54: 29 | H54: 568 | I54: 73017.2662 | J54: 3572.153342 | K54: 1080.319547 | L54: 68.81765546 | M54: 0 | N54: 0 | O54: 4721.290545 | P54: 69445.11285 | Q54: 0.7365075257 | R54: 0.7365075257 | T54: 4721.290545 | U54: 568 | V54: 1.399293317 | W54: 3374.05 | X54: 68.81765546 | Y54: 68.81765546
B55: 20 | D55: 2024-04-02 | E55: 2 | F55: 2024-04-02 | G55: 31 | H55: 599 | I55: 69445.11285 | J55: 3552.437675 | K55: 1098.885782 | L55: 69.96708779 | M55: 0 | N55: 0 | O55: 4721.290545 | P55: 65892.67518 | Q55: 0.7243159629 | R55: 0.7243159629 | T55: 4721.290545 | U55: 599 | V55: 1.425187781 | W55: 3312.75 | X55: 69.96708779 | Y55: 69.96708779
B56: 21 | D56: 2024-05-02 | E56: 4 | F56: 2024-05-02 | G56: 30 | H56: 629 | I56: 65892.67518 | J56: 3648.26322 | K56: 1008.781967 | L56: 64.2453583 | M56: 0 | N56: 0 | O56: 4721.290545 | P56: 62244.41196 | Q56: 0.7127098602 | R56: 0.7127098602 | T56: 4721.290545 | U56: 629 | V56: 1.450703099 | W56: 3254.48 | X56: 64.2453583 | Y56: 64.2453583
B57: 22 | D57: 2024-06-02 | E57: 7 | F57: 2024-06-03 | G57: 32 | H57: 661 | I57: 62244.41196 | J57: 3639.580404 | K57: 1016.97385 | L57: 64.73629166 | M57: 0 | N57: 0 | O57: 4721.290545 | P57: 58604.83156 | Q57: 0.7005349252 | R57: 0.7005349252 | T57: 4721.290545 | U57: 661 | V57: 1.478423137 | W57: 3193.46 | X57: 64.73629166 | Y57: 64.73629166
B58: 23 | D58: 2024-07-02 | E58: 2 | F58: 2024-07-02 | G58: 29 | H58: 690 | I58: 58604.83156 | J58: 3798.974554 | K58: 867.0818343 | L58: 55.23415647 | M58: 0 | N58: 0 | O58: 4721.290545 | P58: 54805.857 | Q58: 0.6896811331 | R58: 0.6896811331 | T58: 4721.290545 | U58: 690 | V58: 1.504001667 | W58: 3139.15 | X58: 55.23415647 | Y58: 55.23415647
B59: 24 | D59: 2024-08-02 | E59: 5 | F59: 2024-08-02 | G59: 31 | H59: 721 | I59: 54805.857 | J59: 3798.835665 | K59: 867.2370823 | L59: 55.21779792 | M59: 0 | N59: 0 | O59: 4721.290545 | P59: 51007.02134 | Q59: 0.6782646974 | R59: 0.6782646974 | T59: 4721.290545 | U59: 721 | V59: 1.531833799 | W59: 3082.12 | X59: 55.21779792 | Y59: 55.21779792
B60: 25 | D60: 2024-09-02 | E60: 1 | F60: 2024-09-02 | G60: 31 | H60: 752 | I60: 51007.02134 | J60: 3862.775081 | K60: 807.1250553 | L60: 51.39040882 | M60: 0 | N60: 0 | O60: 4721.290545 | P60: 47144.24626 | Q60: 0.6670372403 | R60: 0.6670372403 | T60: 4721.290545 | U60: 752 | V60: 1.560180976 | W60: 3026.12 | X60: 51.39040882 | Y60: 51.39040882
B61: 26 | D61: 2024-10-02 | E61: 3 | F61: 2024-10-02 | G61: 30 | H61: 782 | I61: 47144.24626 | J61: 3953.571458 | K61: 721.7534473 | L61: 45.9656401 | M61: 0 | N61: 0 | O61: 4721.290545 | P61: 43190.6748 | Q61: 0.6563489453 | R61: 0.6563489453 | T61: 4721.290545 | U61: 782 | V61: 1.588113095 | W61: 2972.89 | X61: 45.9656401 | Y61: 45.9656401
B62: 27 | D62: 2024-11-02 | E62: 6 | F62: 2024-11-02 | G62: 31 | H62: 813 | I62: 43190.6748 | J62: 3994.334505 | K62: 683.4407278 | L62: 43.51531175 | M62: 0 | N62: 0 | O62: 4721.290545 | P62: 39196.34029 | Q62: 0.6454842642 | R62: 0.6454842642 | T62: 4721.290545 | U62: 813 | V62: 1.617501741 | W62: 2918.88 | X62: 43.51531175 | Y62: 43.51531175
B63: 28 | D63: 2024-12-02 | E63: 1 | F63: 2024-12-02 | G63: 30 | H63: 843 | I63: 39196.34029 | J63: 4082.998898 | K63: 600.0752154 | L63: 38.21643179 | M63: 0 | N63: 0 | O63: 4721.290545 | P63: 35113.3414 | Q63: 0.635141324 | R63: 0.635141324 | T63: 4721.290545 | U63: 843 | V63: 1.646460081 | W63: 2867.54 | X63: 38.21643179 | Y63: 38.21643179
B64: 29 | D64: 2025-01-02 | E64: 4 | F64: 2025-01-02 | G64: 31 | H64: 874 | I64: 35113.3414 | J64: 4130.286683 | K64: 555.6265956 | L64: 35.37726615 | M64: 0 | N64: 0 | O64: 4721.290545 | P64: 30983.05471 | Q64: 0.6246276972 | R64: 0.6246276972 | T64: 4721.290545 | U64: 874 | V64: 1.676928461 | W64: 2815.44 | X64: 35.37726615 | Y64: 35.37726615
B65: 30 | D65: 2025-02-02 | E65: 7 | F65: 2025-02-03 | G65: 32 | H65: 906 | I65: 30983.05471 | J65: 4182.853705 | K65: 506.2134163 | L65: 32.22342381 | M65: 0 | N65: 0 | O65: 4721.290545 | P65: 26800.20101 | Q65: 0.6139574342 | R65: 0.6139574342 | T65: 4721.290545 | U65: 906 | V65: 1.708971214 | W65: 2762.65 | X65: 32.22342381 | Y65: 32.22342381
B66: 31 | D66: 2025-03-02 | E66: 7 | F66: 2025-03-03 | G66: 28 | H66: 934 | I66: 26800.20101 | J66: 4314.15376 | K66: 382.7493941 | L66: 24.38739058 | M66: 0 | N66: 0 | O66: 4721.290545 | P66: 22486.04725 | Q66: 0.6047705842 | R66: 0.6047705842 | T66: 4721.290545 | U66: 934 | V66: 1.73751048 | W66: 2717.27 | X66: 24.38739058 | Y66: 24.38739058
B67: 32 | D67: 2025-04-02 | E67: 3 | F67: 2025-04-02 | G67: 30 | H67: 964 | I67: 22486.04725 | J67: 4355.117172 | K67: 344.249477 | L67: 21.92389607 | M67: 0 | N67: 0 | O67: 4721.290545 | P67: 18130.93008 | Q67: 0.5950800212 | R67: 0.5950800212 | T67: 4721.290545 | U67: 964 | V67: 1.768617352 | W67: 2669.48 | X67: 21.92389607 | Y67: 21.92389607
B68: 33 | D68: 2025-05-02 | E68: 5 | F68: 2025-05-02 | G68: 30 | H68: 994 | I68: 18130.93008 | J68: 4426.037949 | K68: 277.5749391 | L68: 17.67765682 | M68: 0 | N68: 0 | O68: 4721.290545 | P68: 13704.89213 | Q68: 0.5855447352 | R68: 0.5855447352 | T68: 4721.290545 | U68: 994 | V68: 1.800281133 | W68: 2622.53 | X68: 17.67765682 | Y68: 17.67765682
B69: 34 | D69: 2025-06-02 | E69: 1 | F69: 2025-06-02 | G69: 31 | H69: 1025 | I69: 13704.89213 | J69: 4490.619129 | K69: 216.8635126 | L69: 13.80790312 | M69: 0 | N69: 0 | O69: 4721.290545 | P69: 9214.272997 | Q69: 0.575852091 | R69: 0.575852091 | T69: 4721.290545 | U69: 1025 | V69: 1.833596031 | W69: 2574.88 | X69: 13.80790312 | Y69: 13.80790312
B70: 35 | D70: 2025-07-02 | E70: 3 | F70: 2025-07-02 | G70: 30 | H70: 1055 | I70: 9214.272997 | J70: 4571.240988 | K70: 141.0656406 | L70: 8.983916172 | M70: 0 | N70: 0 | O70: 4721.290545 | P70: 4643.032009 | Q70: 0.5666249045 | R70: 0.5666249045 | T70: 4721.290545 | U70: 1055 | V70: 1.866423134 | W70: 2529.59 | X70: 8.983916172 | Y70: 8.983916172
B71: 36 | D71: 2025-08-02 | E71: 6 | F71: 2025-08-02 | G71: 31 | H71: 1086 | I71: 4643.032009 | J71: 4643.032009 | K71: 73.47042365 | L71: 4.67793074 | M71: 0 | N71: 0 | O71: 4721.180363 | P71: 0 | Q71: 0.5572454442 | R71: 0.5572454442 | T71: 4721.180363 | U71: 1086 | V71: 1.900962016 | W71: 2483.57 | X71: 4.67793074 | Y71: 4.67793074
B72: 37 | X72: 0 | Y72: 0
B73: 38 | X73: 0 | Y73: 0
B74: 39 | X74: 0 | Y74: 0
B75: 40 | X75: 0 | Y75: 0
B76: 41 | X76: 0 | Y76: 0
B77: 42 | X77: 0 | Y77: 0
B78: 43 | X78: 0 | Y78: 0
B79: 44 | X79: 0 | Y79: 0
B80: 45 | X80: 0 | Y80: 0
B81: 46 | X81: 0 | Y81: 0
B82: 47 | X82: 0 | Y82: 0
B83: 48 | X83: 0 | Y83: 0
B84: 49 | X84: 0 | Y84: 0
B85: 50 | X85: 0 | Y85: 0
B86: 51 | X86: 0 | Y86: 0
B87: 52 | X87: 0 | Y87: 0
B88: 53 | X88: 0 | Y88: 0
B89: 54 | X89: 0 | Y89: 0
B90: 55 | X90: 0 | Y90: 0
B91: 56 | X91: 0 | Y91: 0
B92: 57 | X92: 0 | Y92: 0
B93: 58 | X93: 0 | Y93: 0
B94: 59 | X94: 0 | Y94: 0
B95: 60 | X95: 0 | Y95: 0
B96: 61 | X96: 0 | Y96: 0
B97: 62 | X97: 0 | Y97: 0
B98: 63 | X98: 0 | Y98: 0
B99: 64 | X99: 0 | Y99: 0
B100: 65 | E100: =IF(B100<=$D$18,WEEKDAY(D100,2),"") ->  | J100: =IF(B100>D$18,"",O100-N100-M100-L100-K100) ->  | K100: =IF(B100>D$18,"",((1+D$23)^(G100/360)-1)*I100) ->  | M100: =IF(B100>D$18,"",D$25*D$26) ->  | N100: =IF(B100>D$18,"",D$27) ->  | O100: =IF(B100>D$18,"",IF(B100=D$18,I100+K100+L100+M100+N100,IF(AND(D$21=2,MONTH(F100)=7),2*D$28,IF(AND(D$22=2,MONTH(F100)=12),2*D$28,D$28)))) ->  | P100: =IF(B100>D$18,"",I100-J100) ->  | Q100: =IFERROR(IF(AND(MONTH(F100)=7,D$21=2),2/(1+D$24)^(H100/360),IF(AND(MONTH(F100)=12,D$22=2),2/(1+D$24)^(H100/360),1/(1+D$24)^(H100/360))),"") ->  | R100: =IFERROR(1/(1+D$24)^(H100/360),"") ->  | U100: =H100 ->  | V100: =IFERROR((1+D$30)^(U100/360),"") ->  | W100: =IFERROR(ROUND(T100/V100,2),"") ->  | X100: 0 | Y100: 0
B101: 66 | D101: =IF(B101>$D$18,"",EDATE(D100,1)) ->  | F101: =IF(E101=7,D101+1,D101) ->  | G101: =IF(B101>D$18,"",F101-F100) ->  | H101: =IFERROR(G101+H100,"") ->  | I101: =IF(B101>D$18,"",P100) ->  | L101: =IF(B101>D$18,"",((1+D$13)^(G101/30)-1)*I101) ->  | T101: =IFERROR(J101+K101+L101+M101+N101,"") ->  | X101: =IF(O101="",0,L101/((1+$I$9)^B101)) -> 0 | Y101: 0
B102: 67 | X102: 0 | Y102: =IF(O102="",0,L102/((1+$Q$28)^B102)) -> 0
B103: 68 | X103: 0 | Y103: 0
B104: 69 | X104: 0 | Y104: 0
B105: 70 | X105: 0 | Y105: 0
B106: 71 | X106: 0 | Y106: 0
B107: 72 | X107: 0 | Y107: 0
B108: 73 | X108: 0 | Y108: 0
B109: 74 | X109: 0 | Y109: 0
B110: 75 | X110: 0 | Y110: 0
B111: 76 | X111: 0 | Y111: 0
B112: 77 | X112: 0 | Y112: 0
B113: 78 | X113: 0 | Y113: 0
B114: 79 | X114: 0 | Y114: 0
B115: 80 | X115: 0 | Y115: 0
B116: 81 | X116: 0 | Y116: 0
B117: 82 | X117: 0 | Y117: 0
B118: 83 | X118: 0 | Y118: 0
B119: 84 | X119: 0 | Y119: 0
B120: 85 | X120: 0 | Y120: 0
B121: 86 | X121: 0 | Y121: 0
B122: 87 | X122: 0 | Y122: 0
B123: 88 | X123: 0 | Y123: 0
B124: 89 | X124: 0 | Y124: 0
B125: 90 | X125: 0 | Y125: 0
B126: 91 | X126: 0 | Y126: 0
B127: 92 | X127: 0 | Y127: 0
B128: 93 | X128: 0 | Y128: 0
B129: 94 | X129: 0 | Y129: 0
B130: 95 | X130: 0 | Y130: 0
B131: 96 | X131: 0 | Y131: 0
B132: 97 | X132: 0 | Y132: 0
B133: 98 | X133: 0 | Y133: 0
B134: 99 | X134: 0 | Y134: 0
B135: 100 | X135: 0 | Y135: 0
B136: 101 | X136: 0 | Y136: 0
B137: 102 | X137: 0 | Y137: 0
B138: 103 | X138: 0 | Y138: 0
B139: 104 | X139: 0 | Y139: 0
B140: 105 | X140: 0 | Y140: 0
B141: 106 | X141: 0 | Y141: 0
B142: 107 | X142: 0 | Y142: 0
B143: 108 | X143: 0 | Y143: 0
B144: 109 | X144: 0 | Y144: 0
B145: 110 | X145: 0 | Y145: 0
B146: 111 | X146: 0 | Y146: 0
B147: 112 | X147: 0 | Y147: 0
B148: 113 | X148: 0 | Y148: 0
B149: 114 | X149: 0 | Y149: 0
B150: 115 | X150: 0 | Y150: 0
B151: 116 | X151: 0 | Y151: 0
B152: 117 | X152: 0 | Y152: 0
B153: 118 | X153: 0 | Y153: 0
B154: 119 | X154: 0 | Y154: 0
B155: 120 | X155: 0 | Y155: 0
B156: 121 | X156: 0 | Y156: 0
B157: 122 | X157: 0 | Y157: 0
B158: 123 | X158: 0 | Y158: 0
B159: 124 | X159: 0 | Y159: 0
B160: 125 | X160: 0 | Y160: 0
B161: 126 | X161: 0 | Y161: 0
B162: 127 | X162: 0 | Y162: 0
B163: 128 | X163: 0 | Y163: 0
B164: 129 | E164: =IF(B164<=$D$18,WEEKDAY(D164,2),"") ->  | J164: =IF(B164>D$18,"",O164-N164-M164-L164-K164) ->  | K164: =IF(B164>D$18,"",((1+D$23)^(G164/360)-1)*I164) ->  | M164: =IF(B164>D$18,"",D$25*D$26) ->  | N164: =IF(B164>D$18,"",D$27) ->  | O164: =IF(B164>D$18,"",IF(B164=D$18,I164+K164+L164+M164+N164,IF(AND(D$21=2,MONTH(F164)=7),2*D$28,IF(AND(D$22=2,MONTH(F164)=12),2*D$28,D$28)))) ->  | P164: =IF(B164>D$18,"",I164-J164) ->  | Q164: =IFERROR(IF(AND(MONTH(F164)=7,D$21=2),2/(1+D$24)^(H164/360),IF(AND(MONTH(F164)=12,D$22=2),2/(1+D$24)^(H164/360),1/(1+D$24)^(H164/360))),"") ->  | R164: =IFERROR(1/(1+D$24)^(H164/360),"") ->  | U164: =H164 ->  | V164: =IFERROR((1+D$30)^(U164/360),"") ->  | W164: =IFERROR(ROUND(T164/V164,2),"") ->  | X164: 0 | Y164: 0
B165: 130 | D165: =IF(B165>$D$18,"",EDATE(D164,1)) ->  | F165: =IF(E165=7,D165+1,D165) ->  | G165: =IF(B165>D$18,"",F165-F164) ->  | H165: =IFERROR(G165+H164,"") ->  | I165: =IF(B165>D$18,"",P164) ->  | L165: =IF(B165>D$18,"",((1+D$13)^(G165/30)-1)*I165) ->  | T165: =IFERROR(J165+K165+L165+M165+N165,"") ->  | X165: =IF(O165="",0,L165/((1+$I$9)^B165)) -> 0 | Y165: 0
B166: 131 | X166: 0 | Y166: =IF(O166="",0,L166/((1+$Q$28)^B166)) -> 0
B167: 132 | X167: 0 | Y167: 0
B168: 133 | X168: 0 | Y168: 0
B169: 134 | X169: 0 | Y169: 0
B170: 135 | X170: 0 | Y170: 0
B171: 136 | X171: 0 | Y171: 0
B172: 137 | X172: 0 | Y172: 0
B173: 138 | X173: 0 | Y173: 0
B174: 139 | X174: 0 | Y174: 0
B175: 140 | X175: 0 | Y175: 0
B176: 141 | X176: 0 | Y176: 0
B177: 142 | X177: 0 | Y177: 0
B178: 143 | X178: 0 | Y178: 0
B179: 144 | X179: 0 | Y179: 0
B180: 145 | X180: 0 | Y180: 0
B181: 146 | X181: 0 | Y181: 0
B182: 147 | X182: 0 | Y182: 0
B183: 148 | X183: 0 | Y183: 0
B184: 149 | X184: 0 | Y184: 0
B185: 150 | X185: 0 | Y185: 0
B186: 151 | X186: 0 | Y186: 0
B187: 152 | X187: 0 | Y187: 0
B188: 153 | X188: 0 | Y188: 0
B189: 154 | X189: 0 | Y189: 0
B190: 155 | X190: 0 | Y190: 0
B191: 156 | X191: 0 | Y191: 0
B192: 157 | X192: 0 | Y192: 0
B193: 158 | X193: 0 | Y193: 0
B194: 159 | X194: 0 | Y194: 0
B195: 160 | X195: 0 | Y195: 0
B196: 161 | X196: 0 | Y196: 0
B197: 162 | X197: 0 | Y197: 0
B198: 163 | X198: 0 | Y198: 0
B199: 164 | X199: 0 | Y199: 0
B200: 165 | X200: 0 | Y200: 0
B201: 166 | X201: 0 | Y201: 0
B202: 167 | X202: 0 | Y202: 0
B203: 168 | X203: 0 | Y203: 0
B204: 169 | X204: 0 | Y204: 0
B205: 170 | X205: 0 | Y205: 0
B206: 171 | X206: 0 | Y206: 0
B207: 172 | X207: 0 | Y207: 0
B208: 173 | X208: 0 | Y208: 0
... 187 more rows

Sheet TarifarioBD (hidden)
A1: TARIFA | B1: PRODUCTO | C1: TIPO_SEGURO | D1: Valor | E1: Columna1 | F1: Columna2 | G1: Columna3 | H1: TARIFA | I1: PRODUCTO | J1: TIPO_SEGURO
A2: TARIFA TITULAR | B2: Persona Natural | C2: Seguro de Vida | D2: 0.000975 | E2: =+CONCATENATE(TarifarioPrincipal[[#This Row],[TARIFA]],TarifarioPrincipal[[#This Row],[PRODUCTO]],TarifarioPrincipal[[#This Row],[TIPO_SEGURO]]) -> TARIFA TITULARPersona NaturalSeguro de Vida | F2: =+TarifarioPrincipal[[#This Row],[Valor]] -> 0.000975 | G2: =+TarifarioPrincipal[[#This Row],[Valor]]*1 -> 0.000975 | H2: TARIFA TITULAR | I2: Persona Natural | J2: Seguro de Vida
A3: TARIFA TITULAR | B3: Persona Natural | C3: Seguro de Desgravamen | D3: 0.002 | E3: =+CONCATENATE(TarifarioPrincipal[[#This Row],[TARIFA]],TarifarioPrincipal[[#This Row],[PRODUCTO]],TarifarioPrincipal[[#This Row],[TIPO_SEGURO]]) -> TARIFA TITULARPersona NaturalSeguro de Desgravamen | F3: =+TarifarioPrincipal[[#This Row],[Valor]] -> 0.002 | G3: =+TarifarioPrincipal[[#This Row],[Valor]]*1 -> 0.002 | H3: TARIFA TITULAR + CONYUGE
A4: TARIFA TITULAR | B4: Persona Natural | C4: Seguro de Desgravamen con Devolución | D4: 0.0026 | E4: =+CONCATENATE(TarifarioPrincipal[[#This Row],[TARIFA]],TarifarioPrincipal[[#This Row],[PRODUCTO]],TarifarioPrincipal[[#This Row],[TIPO_SEGURO]]) -> TARIFA TITULARPersona NaturalSeguro de Desgravamen con Devolución | F4: =+TarifarioPrincipal[[#This Row],[Valor]] -> 0.0026 | G4: =+TarifarioPrincipal[[#This Row],[Valor]]*1 -> 0.0026
A5: TARIFA TITULAR + CONYUGE | B5: Persona Natural | C5: Seguro de Vida | D5: 0.00195 | E5: =+CONCATENATE(TarifarioPrincipal[[#This Row],[TARIFA]],TarifarioPrincipal[[#This Row],[PRODUCTO]],TarifarioPrincipal[[#This Row],[TIPO_SEGURO]]) -> TARIFA TITULAR + CONYUGEPersona NaturalSeguro de Vida | F5: =+TarifarioPrincipal[[#This Row],[Valor]] -> 0.00195 | G5: =+TarifarioPrincipal[[#This Row],[Valor]]*1 -> 0.00195
A6: TARIFA TITULAR + CONYUGE | B6: Persona Natural | C6: Seguro de Desgravamen | D6: 0.004 | E6: =+CONCATENATE(TarifarioPrincipal[[#This Row],[TARIFA]],TarifarioPrincipal[[#This Row],[PRODUCTO]],TarifarioPrincipal[[#This Row],[TIPO_SEGURO]]) -> TARIFA TITULAR + CONYUGEPersona NaturalSeguro de Desgravamen | F6: =+TarifarioPrincipal[[#This Row],[Valor]] -> 0.004 | G6: =+TarifarioPrincipal[[#This Row],[Valor]]*1 -> 0.004
A7: TARIFA TITULAR + CONYUGE | B7: Persona Natural | C7: Seguro de Desgravamen con Devolución | D7: 0.0052 | E7: =+CONCATENATE(TarifarioPrincipal[[#This Row],[TARIFA]],TarifarioPrincipal[[#This Row],[PRODUCTO]],TarifarioPrincipal[[#This Row],[TIPO_SEGURO]]) -> TARIFA TITULAR + CONYUGEPersona NaturalSeguro de Desgravamen con Devolución | F7: =+TarifarioPrincipal[[#This Row],[Valor]] -> 0.0052 | G7: =+TarifarioPrincipal[[#This Row],[Valor]]*1 -> 0.0052
A8: TARIFA TITULAR | B8: Persona Jurídica | C8: Seguro de Desgravamen | D8: 0.000909 | E8: =+CONCATENATE(TarifarioPrincipal[[#This Row],[TARIFA]],TarifarioPrincipal[[#This Row],[PRODUCTO]],TarifarioPrincipal[[#This Row],[TIPO_SEGURO]]) -> TARIFA TITULARPersona JurídicaSeguro de Desgravamen | F8: =+TarifarioPrincipal[[#This Row],[Valor]] -> 0.000909 | G8: =+TarifarioPrincipal[[#This Row],[Valor]]*1 -> 0.000909
A9: TARIFA TITULAR | B9: Persona Jurídica | C9: Seguro de Desgravamen con Devolución | D9: 0.0018 | E9: =+CONCATENATE(TarifarioPrincipal[[#This Row],[TARIFA]],TarifarioPrincipal[[#This Row],[PRODUCTO]],TarifarioPrincipal[[#This Row],[TIPO_SEGURO]]) -> TARIFA TITULARPersona JurídicaSeguro de Desgravamen con Devolución | F9: =+TarifarioPrincipal[[#This Row],[Valor]] -> 0.0018 | G9: =+TarifarioPrincipal[[#This Row],[Valor]]*1 -> 0.0018
A10: TARIFA TITULAR + CONYUGE | B10: Persona Jurídica | C10: Seguro de Desgravamen | D10: 0.001591 | E10: =+CONCATENATE(TarifarioPrincipal[[#This Row],[TARIFA]],TarifarioPrincipal[[#This Row],[PRODUCTO]],TarifarioPrincipal[[#This Row],[TIPO_SEGURO]]) -> TARIFA TITULAR + CONYUGEPersona JurídicaSeguro de Desgravamen | F10: =+TarifarioPrincipal[[#This Row],[Valor]] -> 0.001591 | G10: =+TarifarioPrincipal[[#This Row],[Valor]]*1 -> 0.001591
A11: TARIFA TITULAR + CONYUGE | B11: Persona Jurídica | C11: Seguro de Desgravamen con Devolución | D11: 0.00315 | E11: =+CONCATENATE(TarifarioPrincipal[[#This Row],[TARIFA]],TarifarioPrincipal[[#This Row],[PRODUCTO]],TarifarioPrincipal[[#This Row],[TIPO_SEGURO]]) -> TARIFA TITULAR + CONYUGEPersona JurídicaSeguro de Desgravamen con Devolución | F11: =+TarifarioPrincipal[[#This Row],[Valor]] -> 0.00315 | G11: =+TarifarioPrincipal[[#This Row],[Valor]]*1 -> 0.00315

Sheet CostoCapBD (hidden)
A1: TARIFA | B1: CostoCapital
A2: TARIFA TITULAR | B2: 0
A3: TARIFA TITULAR + CONYUGE | B3: 0
